fUSD/lending_fUSD_20250708
["ID","MTS","AMOUNT","RATE_DAILY","PERIOD"]
[370402151,1752000659754,-717.37,0.00024657,2]
[370402152,1752000659766,-9800.0,0.00024657,2]
[370402153,1752000659777,-986.52,0.00024657,2]
[370402154,1752000659788,-460.0,0.00024657,2]
[370402155,1752000659798,-946.45,0.00024657,2]
[370402156,1752000659808,-460.0,0.00024657,2]
[370402157,1752000659819,-613.18,0.00024657,2]
[370402158,1752000659829,-460.0,0.00024657,2]
[370402159,1752000659839,-460.0,0.00024657,2]
[370402160,1752000659850,-538.38,0.00024657,2]
[370402161,1752000659860,-460.0,0.00024657,2]
[370402162,1752000659869,-845.76,0.00024657,2]
[370402163,1752000659880,-460.0,0.00024657,2]
[370402164,1752000659889,-2592.57,0.00024657,2]
[370402165,1752000659899,-460.0,0.00024657,2]
[370402166,1752000659909,-796.37,0.00024657,2]
[370402167,1752000659919,-460.0,0.00024657,2]
[370402168,1752000659929,-3962.09,0.00024657,2]
[370402169,1752000659938,-460.0,0.00024657,2]
[370402170,1752000659948,-1077.48,0.00024657,2]
[370402171,1752000659958,-460.0,0.00024657,2]
[370402172,1752000659968,-460.0,0.00024657,2]
[370402173,1752000659978,-8084.37,0.00024657,2]
[370402174,1752000659988,-460.0,0.00024657,2]
[370402175,1752000659998,-821.0,0.00024657,2]
[370402176,1752000660008,-4465.64,0.00024657,2]
[370402177,1752000660018,-460.0,0.00024657,2]
[370402178,1752000660028,-1730.65,0.00024657,2]
[370402179,1752000660038,-1953.38,0.00024657,2]
[370402180,1752000660048,-666.19,0.00024657,2]
[370402181,1752000660058,-1326.36,0.00024657,2]
[370402182,1752000660068,-652.6,0.00024657,2]
[370402183,1752000660078,-460.0,0.00024657,2]
[370402184,1752000660088,-680.29,0.00024657,2]
[370402185,1752000660098,-1282.96,0.00024657,2]
[370402186,1752000660108,-460.0,0.00024657,2]
[370402187,1752000660117,-460.0,0.00024657,2]
[370402188,1752000660127,-855.42,0.00024657,2]
[370402189,1752000660138,-1207.04,0.00024657,2]
[370402190,1752000660147,-2734.24,0.00024657,2]
[370402191,1752000660157,-460.0,0.00024657,2]
[370402192,1752000660166,-460.0,0.00024657,2]
[370402193,1752000660176,-2833.63,0.00024657,2]
[370402194,1752000660186,-585.42394855,0.00024657,2]
[370402195,1752000660196,-460.0,0.00024657,2]
[370402196,1752000660206,-661.37,0.00024657,2]
[370402197,1752000660216,-2376.58,0.00024657,2]
[370402198,1752000660227,-2004.8,0.00024657,2]
[370402199,1752000660236,-460.0,0.00024657,2]
[370402200,1752000660246,-460.0,0.00024657,2]
[370402201,1752000660256,-460.0,0.00024657,2]
[370402202,1752000660266,-635.79,0.00024657,2]
[370402203,1752000660276,-4773.91,0.00024657,2]
[370402204,1752000660287,-627.89,0.00024657,2]
[370402205,1752000660298,-460.0,0.00024657,2]
[370402206,1752000660309,-529.76,0.00024657,2]
[370402207,1752000660321,-460.0,0.00024657,2]
[370402208,1752000660331,-1587.35,0.00024657,2]
[370402209,1752000660341,-755.58,0.00024657,2]
[370402210,1752000660351,-460.0,0.00024657,2]
[370402211,1752000660362,-775.69,0.00024657,2]
[370402212,1752000660372,-1510.57,0.00024657,2]
[370402213,1752000660386,-3055.97,0.00024657,2]
[370402214,1752000660396,-1204.34,0.00024657,2]
[370402215,1752000660407,-460.0,0.00024657,2]
[370402216,1752000660419,-460.0,0.00024657,2]
[370402217,1752000660428,-2414.57,0.00024657,2]
[370402218,1752000660438,-460.0,0.00024657,2]
[370402219,1752000660447,-1098.68,0.00024657,2]
[370402220,1752000660459,-3320.51,0.00024657,2]
[370402221,1752000660470,-460.0,0.00024657,2]
[370402222,1752000660480,-1027.36,0.00024657,2]
[370402223,1752000660490,-639.54,0.00024657,2]
[370402224,1752000660502,-460.0,0.00024657,2]
[370402225,1752000660512,-517.87,0.00024657,2]
[370402226,1752000660523,-460.0,0.00024657,2]
[370402227,1752000660534,-1520.79,0.00024657,2]
[370402228,1752000660544,-460.0,0.00024657,2]
[370402229,1752000660554,-460.0,0.00024657,2]
[370402230,1752000660564,-1109.53,0.00024657,2]
[370402231,1752000660575,-460.0,0.00024657,2]
[370402232,1752000660585,-460.0,0.00024657,2]
[370402233,1752000660596,-6639.17,0.00024657,2]
[370402234,1752000660607,-460.0,0.00024657,2]
[370402235,1752000660617,-460.0,0.00024657,2]
[370402236,1752000660627,-1008.72,0.00024657,2]
[370402237,1752000660637,-460.0,0.00024657,2]
[370402238,1752000660648,-460.0,0.00024657,2]
[370402239,1752000660658,-460.0,0.00024657,2]
[370402240,1752000660667,-2310.02,0.00024657,2]
[370402241,1752000660677,-460.0,0.00024657,2]
[370402242,1752000660687,-872.88,0.00024657,2]
[370402243,1752000660699,-6523.55,0.00024657,2]
[370402244,1752000660709,-4112.18,0.00024657,2]
[370402245,1752000660718,-601.13,0.00024657,2]
[370402246,1752000660728,-1341.86,0.00024657,2]
[370402247,1752000660740,-562.95,0.00024657,2]
[370402248,1752000660751,-460.0,0.00024657,2]
[370402249,1752000660762,-2791.65,0.00024657,2]
[370402250,1752000660773,-846.71,0.00024657,2]
[370402251,1752000660789,-460.0,0.00024657,2]
[370402252,1752000660800,-500.0,0.00024657,2]
[370402253,1752000660810,-1472.4,0.00024657,2]
[370402254,1752000660820,-460.0,0.00024657,2]
[370402255,1752000660830,-1049.43,0.00024657,2]
[370402256,1752000660841,-460.0,0.00024657,2]
[370402257,1752000660852,-1178.3,0.00024657,2]
[370402258,1752000660863,-460.0,0.00024657,2]
[370402259,1752000660874,-1835.8,0.00024657,2]
[370402260,1752000660885,-2778.84,0.00024657,2]
[370402261,1752000660895,-1519.11,0.00024657,2]
[370402262,1752000660906,-460.0,0.00024657,2]
[370402263,1752000660918,-460.0,0.00024657,2]
[370402264,1752000660929,-460.0,0.00024657,2]
[370402265,1752000660941,-460.0,0.00024657,2]
[370402266,1752000660952,-4032.29,0.00024657,2]
[370402267,1752000660962,-460.0,0.00024657,2]
[370402268,1752000660972,-460.0,0.00024657,2]
[370402269,1752000660982,-8484.82,0.00024657,2]
[370402270,1752000660993,-588.98,0.00024657,2]
[370402271,1752000661003,-1878.21,0.00024657,2]
[370402272,1752000661013,-2017.5,0.00024657,2]
[370402273,1752000661023,-555.32,0.00024657,2]
[370402274,1752000661033,-460.0,0.00024657,2]
[370402275,1752000661043,-999.68,0.00024657,2]
[370402276,1752000661054,-1817.83,0.00024657,2]
[370402277,1752000661064,-1936.6,0.00024657,2]
[370402278,1752000661074,-3150.98,0.00024657,2]
[370402279,1752000661087,-910.35,0.00024657,2]
[370402280,1752000661097,-460.0,0.00024657,2]
[370402281,1752000661109,-2236.33,0.00024657,2]
[370402282,1752000661121,-1355.71,0.00024657,2]
[370402283,1752000661133,-621.98,0.00024657,2]
[370402284,1752000661143,-495.43,0.00024657,2]
[370402285,1752000661156,-577.23,0.00024657,2]
[370402286,1752000661167,-898.18,0.00024657,2]
[370402287,1752000661177,-460.0,0.00024657,2]
[370402288,1752000661188,-460.0,0.00024657,2]
[370402289,1752000661199,-460.0,0.00024657,2]
[370402290,1752000661208,-460.0,0.00024657,2]
[370402291,1752000661218,-460.0,0.00024657,2]
[370402292,1752000661233,-1681.32,0.00024657,2]
[370402293,1752000661244,-2477.07,0.00024657,2]
[370402294,1752000661256,-919.33,0.00024657,2]
[370402295,1752000661268,-2195.0,0.00024657,2]
[370402296,1752000661278,-1116.01,0.00024657,2]
[370402297,1752000661291,-460.0,0.00024657,2]
[370402298,1752000661525,-1735.93,0.00024657,2]
[370402299,1752000661540,-1616.89,0.00024657,2]
[370402300,1752000661551,-1545.33,0.00024657,2]
[370402301,1752000661562,-460.0,0.00024657,2]
[370402302,1752000661574,-460.0,0.00024657,2]
[370402303,1752000661583,-523.34,0.00024657,2]
[370402304,1752000661594,-3376.92,0.00024657,2]
[370402305,1752000661603,-488.18,0.00024657,2]
[370402306,1752000661613,-2195.9,0.00024657,2]
[370402307,1752000661622,-1242.11,0.00024657,2]
[370402308,1752000661633,-460.0,0.00024657,2]
[370402309,1752000661642,-460.0,0.00024657,2]
[370402310,1752000661652,-460.0,0.00024657,2]
[370402311,1752000661662,-460.0,0.00024657,2]
[370402312,1752000661673,-460.0,0.00024657,2]
[370402313,1752000661693,-3271.49,0.00024657,2]
[370402314,1752000661705,-460.0,0.00024657,2]
[370402315,1752000661715,-460.0,0.00024657,2]
[370402316,1752000661726,-460.0,0.00024657,2]
[370402317,1752000661737,-460.0,0.00024657,2]
[370402318,1752000661748,-1007.62,0.00024657,2]
[370402319,1752000661758,-7930.61,0.00024657,2]
[370402320,1752000661768,-460.0,0.00024657,2]
[370402321,1752000661778,-460.0,0.00024657,2]
[370402322,1752000661788,-4774.44,0.00024657,2]
[370402323,1752000661798,-2059.27,0.00024657,2]
[370402324,1752000661808,-1297.41,0.00024657,2]
[370402325,1752000661818,-460.0,0.00024657,2]
[370402326,1752000661828,-1830.27,0.00024657,2]
[370402327,1752000661837,-1626.12,0.00024657,2]
[370402328,1752000661848,-460.0,0.00024657,2]
[370402329,1752000661857,-1000.0,0.00024657,2]
[370402330,1752000661867,-460.0,0.00024657,2]
[370402331,1752000661876,-1239.82,0.00024657,2]
[370402332,1752000661886,-2250.19,0.00024657,2]
[370402333,1752000661896,-3290.13,0.00024657,2]
[370402334,1752000661906,-7580.42,0.00024657,2]
[370402335,1752000661915,-610.71,0.00024657,2]
[370402336,1752000661925,-1874.96,0.00024657,2]
[370402337,1752000661935,-936.28,0.00024657,2]
[370402338,1752000661944,-523.13,0.00024657,2]
[370402339,1752000661956,-1928.75,0.00024657,2]
[370402340,1752000661966,-460.0,0.00024657,2]
[370402341,1752000661976,-460.0,0.00024657,2]
[370402342,1752000661987,-752.68,0.00024657,2]
[370402343,1752000661998,-2890.22,0.00024657,2]
[370402344,1752000662008,-2292.28,0.00024657,2]
[370402345,1752000662018,-460.0,0.00024657,2]
[370402346,1752000662028,-6133.68,0.00024657,2]
[370402347,1752000662039,-12210.57,0.00024657,2]
[370402348,1752000662050,-460.0,0.00024657,2]
[370402349,1752000662060,-859.43,0.00024657,2]
[370402350,1752000662070,-460.0,0.00024657,2]
[370402351,1752000662080,-460.0,0.00024657,2]
[370402352,1752000662089,-11360.94,0.00024657,2]
[370402353,1752000662099,-460.0,0.00024657,2]
[370402354,1752000662108,-617.14,0.00024657,2]
[370402355,1752000662118,-1234.16,0.00024657,2]
[370402356,1752000662127,-928.06,0.00024657,2]
[370402357,1752000662137,-2470.62,0.00024657,2]
[370402358,1752000662148,-314.84649046,0.00024657,2]
[370402359,1752000662158,-460.0,0.00024657,2]
[370402360,1752000662167,-460.0,0.00024657,2]
[370402361,1752000662184,-460.0,0.00024657,2]
[370402362,1752000662194,-460.0,0.00024657,2]
[370402363,1752000662206,-1077.26,0.00024657,2]
[370402364,1752000662216,-460.0,0.00024657,2]
[370402365,1752000662226,-460.0,0.00024657,2]
[370402366,1752000662235,-460.0,0.00024657,2]
[370402367,1752000662246,-460.0,0.00024657,2]
[370402368,1752000662256,-3975.02,0.00024657,2]
[370402369,1752000662267,-2006.58,0.00024657,2]
[370402370,1752000662278,-470.75,0.00024657,2]
[370402371,1752000662288,-936.32,0.00024657,2]
[370402372,1752000662298,-460.0,0.00024657,2]
[370402373,1752000662308,-475.94,0.00024657,2]
[370402374,1752000662319,-2633.43,0.00024657,2]
[370402375,1752000662329,-595.09,0.00024657,2]
[370402376,1752000662338,-460.0,0.00024657,2]
[370402377,1752000662348,-490.0,0.00024657,2]
[370402378,1752000662359,-2671.06,0.00024657,2]
[370402379,1752000662370,-3465.63,0.00024657,2]
[370402380,1752000662383,-11781.52,0.00024657,2]
[370402381,1752000662394,-460.0,0.00024657,2]
[370402382,1752000662404,-990.55,0.00024657,2]
[370402383,1752000662415,-1171.82,0.00024657,2]
[370402384,1752000662428,-700.24,0.00024657,2]
[370402385,1752000662438,-460.0,0.00024657,2]
[370402386,1752000662450,-463.43,0.00024657,2]
[370402387,1752000662460,-460.0,0.00024657,2]
[370402388,1752000662473,-460.0,0.00024657,2]
[370402389,1752000662485,-460.0,0.00024657,2]
[370402390,1752000662496,-460.0,0.00024657,2]
[370402391,1752000662507,-735.94,0.00024657,2]
[370402392,1752000662518,-988.37,0.00024657,2]
[370402393,1752000662529,-226.62539944,0.00024657,2]
[370402394,1752000662539,-1693.78,0.00024657,2]
[370402395,1752000662550,-460.0,0.00024657,2]
[370402396,1752000662561,-726.14,0.00024657,2]
[370402397,1752000662576,-6283.44,0.00024657,2]
[370402398,1752000662588,-2249.05,0.00024657,2]
[370402399,1752000662599,-1542.22,0.00024657,2]
[370402400,1752000662610,-1744.76,0.00024657,2]
[370402401,1752000662622,-609.78,0.00024657,2]
[370402402,1752000662634,-604.86,0.00024657,2]
[370402403,1752000662647,-517.88,0.00024657,2]
[370402404,1752000662659,-1656.99,0.00024657,2]
[370402405,1752000662672,-921.12,0.00024657,2]
[370402406,1752000662683,-460.0,0.00024657,2]
[370402407,1752000662694,-460.0,0.00024657,2]
[370402408,1752000662707,-1504.4,0.00024657,2]
[370402409,1752000662718,-160.77156159,0.00024657,2]
[370402410,1752000662730,-2616.64,0.00024657,2]
[370402411,1752000662742,-549.95,0.00024657,2]
[370402412,1752000662754,-755.14,0.00024657,2]
[370402413,1752000662764,-755.14,0.00024657,2]
[370402414,1752000662775,-755.14,0.00024657,2]
[370402415,1752000662786,-460.0,0.00024657,2]
[370402416,1752000662797,-755.14,0.00024657,2]
[370402417,1752000662808,-755.14,0.00024657,2]
[370402418,1752000662819,-755.14,0.00024657,2]
[370402419,1752000662830,-755.14,0.00024657,2]
[370402420,1752000662840,-755.14,0.00024657,2]
[370402421,1752000662850,-594.44,0.00024657,2]
[370402422,1752000662864,-755.14,0.00024657,2]
[370402423,1752000662873,-755.14,0.00024657,2]
[370402424,1752000662883,-755.14,0.00024657,2]
[370402425,1752000662893,-755.14,0.00024657,2]
[370402426,1752000662905,-460.0,0.00024657,2]
[370402427,1752000662916,-703.6,0.00024657,2]
[370402428,1752000662926,-755.14,0.00024657,2]
[370402429,1752000662938,-755.14,0.00024657,2]
[370402430,1752000662949,-755.14,0.00024657,2]
[370402431,1752000662961,-755.14,0.00024657,2]
[370402432,1752000662971,-663.96,0.00024657,2]
[370402433,1752000662981,-635.92,0.00024657,2]
[370402434,1752000662992,-460.0,0.00024657,2]
[370402435,1752000663002,-460.0,0.00024657,2]
[370402436,1752000663012,-814.38,0.00024657,2]
[370402437,1752000663024,-4999.35,0.00024657,2]
[370402438,1752000663035,-460.04,0.00024657,2]
[370402439,1752000663045,-492.86688377,0.00024657,2]
[370402440,1752000663055,-2187.07,0.00024657,2]
[370402441,1752000663065,-350.60217386,0.00024657,2]
[370402442,1752000663075,-460.0,0.00024657,2]
[370402443,1752000663085,-460.0,0.00024657,2]
[370402444,1752000663096,-21811.95,0.00024657,2]
[370402445,1752000663106,-3548.46,0.00024657,2]
[370402446,1752000663116,-460.0,0.00024657,2]
[370402447,1752000663126,-460.0,0.00024657,2]
[370402448,1752000663136,-460.0,0.00024657,2]
[370402449,1752000663146,-460.0,0.00024657,2]
[370402450,1752000663157,-680.88,0.00024657,2]
[370402451,1752000663167,-626.57,0.00024657,2]
[370402452,1752000663177,-460.0,0.00024657,2]
[370402453,1752000663188,-743.87,0.00024657,2]
[370402454,1752000663201,-460.0,0.00024657,2]
[370402455,1752000663212,-805.06,0.00024657,2]
[370402456,1752000663223,-8096.44,0.00024657,2]
[370402457,1752000663233,-1266.77,0.00024657,2]
[370402458,1752000663243,-2137.96,0.00024657,2]
[370402459,1752000663252,-460.0,0.00024657,2]
[370402460,1752000663262,-460.0,0.00024657,2]
[370402461,1752000663272,-460.0,0.00024657,2]
[370402462,1752000663284,-1173.84,0.00024657,2]
[370402463,1752000663294,-460.0,0.00024657,2]
[370402464,1752000663304,-460.0,0.00024657,2]
[370402465,1752000663316,-4279.17,0.00024657,2]
[370402466,1752000663326,-460.0,0.00024657,2]
[370402467,1752000663336,-490.0,0.00024657,2]
[370402468,1752000663346,-460.0,0.00024657,2]
[370402469,1752000663356,-460.0,0.00024657,2]
[370402470,1752000663366,-460.0,0.00024657,2]
[370402471,1752000663376,-2491.92,0.00024657,2]
[370402472,1752000663389,-460.0,0.00024657,2]
[370402473,1752000663399,-460.0,0.00024657,2]
[370402474,1752000663408,-460.0,0.00024657,2]
[370402475,1752000663419,-831.92,0.00024657,2]
[370402476,1752000663428,-920.69,0.00024657,2]
[370402477,1752000663439,-490.0,0.00024657,2]
[370402478,1752000663448,-4721.65,0.00024657,2]
[370402479,1752000663459,-460.0,0.00024657,2]
[370402480,1752000663471,-5384.85,0.00024657,2]
[370402481,1752000663481,-460.0,0.00024657,2]
[370402482,1752000663491,-460.0,0.00024657,2]
[370402483,1752000663504,-2503.24,0.00024657,2]
[370402484,1752000663514,-696.05,0.00024657,2]
[370402485,1752000663523,-2728.52,0.00024657,2]
[370402486,1752000663533,-460.0,0.00024657,2]
[370402487,1752000663545,-1869.52,0.00024657,2]
[370402488,1752000663555,-20690.16,0.00024657,2]
[370402489,1752000663566,-460.0,0.00024657,2]
[370402490,1752000663575,-593.21,0.00024657,2]
[370402491,1752000663585,-2006.69,0.00024657,2]
[370402492,1752000663596,-2729.48,0.00024657,2]
[370402493,1752000663607,-460.0,0.00024657,2]
[370402494,1752000663617,-476.29,0.00024657,2]
[370402495,1752000663628,-499.46132762,0.00024657,2]
[370402496,1752000663638,-4983.45,0.00024657,2]
[370402497,1752000663651,-2768.89,0.00024657,2]
[370402498,1752000663661,-466.98,0.00024657,2]
[370402499,1752000663671,-1637.93,0.00024657,2]
[370402500,1752000663683,-460.0,0.00024657,2]
[370402501,1752000663693,-460.0,0.00024657,2]
[370402502,1752000663706,-2590.01,0.00024657,2]
[370402503,1752000663716,-4993.98,0.00024657,2]
[370402504,1752000663726,-460.0,0.00024657,2]
[370402505,1752000663738,-460.0,0.00024657,2]
[370402506,1752000663748,-1330.31,0.00024657,2]
[370402507,1752000663759,-6547.03,0.00024657,2]
[370402508,1752000663769,-3410.78,0.00024657,2]
[370402509,1752000663779,-523.28473659,0.00024657,2]
[370402510,1752000663789,-1844.97,0.00024657,2]
[370402511,1752000663799,-4742.72,0.00024657,2]
[370402512,1752000663809,-8493.13,0.00024657,2]
[370402513,1752000663820,-460.0,0.00024657,2]
[370402514,1752000663829,-589.78,0.00024657,2]
[370402515,1752000663839,-460.0,0.00024657,2]
[370402516,1752000663850,-551.14318235,0.00024657,2]
[370402517,1752000663861,-753.21,0.00024657,2]
[370402518,1752000663872,-460.0,0.00024657,2]
[370402519,1752000663882,-524.34,0.00024657,2]
[370402520,1752000663893,-3210.02,0.00024657,2]
[370402521,1752000663903,-460.0,0.00024657,2]
[370402522,1752000663913,-841.27,0.00024657,2]
[370402523,1752000663923,-252.32238933,0.00024657,2]
[370402524,1752000663934,-1148.62,0.00024657,2]
[370402525,1752000663945,-502.29,0.00024657,2]
[370402526,1752000663955,-1202.3,0.00024657,2]
[370402527,1752000663966,-460.0,0.00024657,2]
[370402528,1752000663976,-1689.86,0.00024657,2]
[370402529,1752000663987,-460.0,0.00024657,2]
[370402530,1752000663997,-460.0,0.00024657,2]
[370402531,1752000664008,-460.0,0.00024657,2]
[370402532,1752000664018,-583.05,0.00024657,2]
[370402533,1752000664033,-460.0,0.00024657,2]
[370402534,1752000664043,-3792.25,0.00024657,2]
[370402535,1752000664053,-2988.36,0.00024657,2]
[370402536,1752000664063,-460.0,0.00024657,2]
[370402537,1752000664073,-460.0,0.00024657,2]
[370402538,1752000664083,-10000.0,0.00024658,2]
[370402539,1752000664093,-175.0,0.00024658,2]
[370402540,1752000664103,-175.0,0.00024658,2]
[370402541,1752000664112,-198.87026856,0.00024658,2]
[370402542,1752000664122,-151.0,0.00024658,7]
[370402543,1752000664132,-151.0,0.00024658,7]
[370402544,1752000664142,-151.0,0.00024658,7]
[370402545,1752000664152,-151.0,0.00024658,7]
[370402546,1752000664162,-151.0,0.00024658,7]
[370402547,1752000664172,-151.0,0.00024658,7]
[370402548,1752000664182,-151.0,0.00024658,7]
[370402549,1752000664192,-151.0,0.00024658,7]
[370402550,1752000664201,-151.0,0.00024658,7]
[370402551,1752000664211,-154.91641,0.00024658,7]
[370402552,1752000664220,-151.170954,0.00024658,7]
[370402553,1752000664230,-471.099345,0.00024658,7]
[370402554,1752000664239,-471.099345,0.00024658,7]
[370402555,1752000664249,-471.099345,0.00024658,7]
[370402556,1752000664258,-471.099345,0.00024658,7]
[370402557,1752000664268,-471.099345,0.00024658,7]
[370402558,1752000664278,-471.099345,0.00024658,7]
[370402559,1752000664288,-471.099345,0.00024658,7]
[370402560,1752000664298,-471.099345,0.00024658,7]
[370402561,1752000664307,-471.099345,0.00024658,7]
[370402562,1752000664318,-471.099345,0.00024658,7]
[370402563,1752000664328,-471.099345,0.00024658,7]
[370402564,1752000664337,-471.099345,0.00024658,7]
[370402565,1752000664347,-471.099345,0.00024658,7]
[370402566,1752000664356,-471.099345,0.00024658,7]
[370402567,1752000664365,-471.099345,0.00024658,7]
[370402568,1752000664375,-471.099345,0.00024658,7]
[370402569,1752000664386,-471.099345,0.00024658,7]
[370402570,1752000664396,-471.099345,0.00024658,7]
[370402571,1752000664405,-471.099345,0.00024658,7]
[370402572,1752000664644,-471.09935145,0.00024658,7]
[370402573,1752000664656,-1000.0,0.00024658,2]
[370402574,1752000664666,-845.69240405,0.0002467,2]
[370402575,1752000664676,-500.0,0.0002467,2]
[370402576,1752000664687,-500.0,0.0002467,2]
[370402577,1752000664697,-500.0,0.0002467,2]
[370402578,1752000664707,-500.0,0.0002467,2]
[370402579,1752000664718,-500.0,0.0002467,2]
[370402580,1752000664727,-1261.09,0.00024672,2]
[370402581,1752000664736,-500.0,0.00024673,2]
[370402582,1752000664745,-500.0,0.00024673,2]
[370402583,1752000664756,-205.6546453,0.00024673,2]
[370402584,1752000664768,-608.43587559,0.00024673,2]
[370402585,1752000664778,-500.0,0.00024673,2]
[370402586,1752000664788,-500.0,0.00024673,2]
[370402587,1752000664799,-500.0,0.00024673,2]
[370402588,1752000664809,-160.11515652,0.00024673,2]
[370402589,1752000664819,-500.84192831,0.00024673,2]
[370402590,1752000664828,-500.0,0.00024673,2]
[370402591,1752000664838,-550.74755828,0.00024673,2]
[370402592,1752000664849,-500.0,0.00024673,2]
[370402593,1752000664860,-393.72291987,0.00024673,2]
[370402594,1752000664872,-161.20338246,0.00024673,2]
[370402595,1752000664883,-537.53435272,0.00024673,2]
[370402596,1752000664893,-500.0,0.00024673,2]
[370402597,1752000664903,-501.98395154,0.00024673,2]
[370402598,1752000664912,-500.39373287,0.00024673,2]
[370402599,1752000664923,-500.0,0.00024673,2]
[370402600,1752000664933,-453.7622659,0.00024673,2]
[370402601,1752000664943,-159.97523335,0.00024673,2]
[370402602,1752000664953,-163.70561704,0.00024673,2]
[370402603,1752000664962,-370.96221989,0.00024673,2]
[370402604,1752000664971,-501.52885581,0.00024673,2]
[370402605,1752000664981,-500.0,0.00024673,2]
[370402606,1752000664992,-159.92601231,0.00024673,2]
[370402607,1752000665001,-159.89665605,0.00024673,2]
[370402608,1752000665012,-500.0,0.00024673,2]
[370402609,1752000665023,-500.0,0.00024673,2]
[370402610,1752000665033,-500.0,0.00024673,2]
[370402611,1752000665043,-319.00988977,0.00024673,2]
[370402612,1752000665053,-500.0,0.00024673,2]
[370402613,1752000665063,-500.35654688,0.00024673,2]
[370402614,1752000665073,-500.0,0.00024673,2]
[370402615,1752000665083,-514.50495485,0.00024673,2]
[370402616,1752000665092,-500.0,0.00024673,2]
[370402617,1752000665101,-500.85111625,0.00024673,2]
[370402618,1752000665111,-500.0,0.00024673,2]
[370402619,1752000665121,-395.46,0.00024688,2]
[370402620,1752000665131,-300.0,0.00024699,10]
[370402621,1752000665141,-300.0,0.00024699,10]
[370402622,1752000665150,-1341.89253249,0.00024699,30]
[370402623,1752000665160,-755.14,0.00024699,2]
[370402624,1752000665169,-10000.0,0.000247,2]
[370402625,1752000665178,-500.0,0.000247,2]
[370402626,1752000665188,-500.0,0.000247,2]
[370402627,1752000665197,-500.0,0.000247,2]
[370402628,1752000665208,-500.0,0.000247,2]
[370402629,1752000665217,-500.0,0.000247,2]
[370402630,1752000665227,-500.0,0.000247,2]
[370402631,1752000665236,-500.0,0.000247,2]
[370402632,1752000665246,-500.0,0.000247,2]
[370402633,1752000665255,-500.0,0.000247,2]
[370402634,1752000665267,-500.0,0.000247,2]
[370402635,1752000665278,-500.0,0.000247,2]
[370402636,1752000665289,-500.0,0.000247,2]
[370402637,1752000665299,-500.0,0.000247,2]
[370402638,1752000665310,-500.0,0.000247,2]
[370402639,1752000665319,-500.0,0.000247,2]
[370402640,1752000665329,-500.0,0.000247,2]
[370402641,1752000665338,-500.0,0.000247,2]
[370402642,1752000665349,-500.0,0.000247,2]
[370402643,1752000665361,-500.0,0.000247,2]
[370402644,1752000665371,-500.0,0.000247,2]
[370402645,1752000665383,-500.0,0.000247,2]
[370402646,1752000665395,-500.0,0.000247,2]
[370402647,1752000665405,-500.0,0.000247,2]
[370402648,1752000665415,-500.0,0.000247,2]
[370402649,1752000665427,-500.0,0.000247,2]
[370402650,1752000665439,-500.0,0.000247,2]